bitfinex/quotes_SOLUSD_20240824
["timestamp","ask_amount","ask_price","bid_price","bid_amount"]
[1724501349465,1.57755371,158.49,158.42,65.0]
[1724501352369,1.57755371,158.49,158.43,7.89866942]
[1724501353602,1.57755371,158.49,158.42,65.0]
[1724501353890,16.61723855,158.5,158.43,8.14964844]
[1724501354071,15.0396,158.5,158.44,89.53754574]
[1724501354271,15.0396,158.5,158.45,7.89780889]
[1724501354496,15.0396,158.5,158.46,45.0]
[1724501354990,15.0396,158.5,158.45,45.0]
[1724501355302,15.0396,158.5,158.46,52.43502848]
[1724501355479,15.0396,158.5,158.48,24.53754574]
[1724501355668,15.0396,158.5,158.49,8.02297274]
[1724501355997,15.0396,158.5,158.49,53.02297274]
[1724501356367,6.2369,158.52,158.49,53.02297274]
[1724501356569,6.2369,158.52,158.5,7.89748274]
[1724501356798,16.6707091,158.54,158.5,7.89748274]
[1724501359877,16.6707091,158.54,158.49,45.12549]
[1724501360098,16.6707091,158.54,158.5,52.43269935]
[1724501360292,16.6707091,158.54,158.5,44.53754574]
[1724501361189,16.6707091,158.54,158.51,45.0]
[1724501362375,0.8458091,158.54,158.51,45.0]
[1724501366887,0.8458091,158.54,158.5,20.0]
[1724501367092,0.8458091,158.54,158.49,20.0]
[1724501367293,0.8458091,158.54,158.5,52.89506145]
[1724501367496,0.8458091,158.54,158.5,45.0]
[1724501367899,0.8458091,158.54,158.49,20.0]
[1724501368088,6.0127,158.53,158.47,20.0]
[1724501368300,6.0127,158.53,158.48,7.89620701]
[1724501368613,6.0127,158.53,158.49,20.0]
[1724501368997,6.0127,158.53,158.46,24.53754574]
[1724501368998,6.0127,158.53,158.47,20.0]
[1724501369311,6.0127,158.53,158.48,7.89601594]
[1724501369501,6.0127,158.53,158.49,20.0]
[1724501369984,0.8458091,158.54,158.49,20.0]
[1724501370187,0.8458091,158.54,158.48,24.53754574]
[1724501370410,0.8458091,158.54,158.49,20.0]
[1724501370710,0.8458091,158.54,158.5,46.26162965]
[1724501371005,0.8458091,158.54,158.5,45.0]
[1724501372283,0.8458091,158.54,158.49,20.12549]
[1724501372690,0.8458091,158.54,158.5,8.14611076]
[1724501372915,0.8458091,158.54,158.5,7.89513076]
[1724501373207,0.8458091,158.54,158.49,20.0]
[1724501373383,0.8458091,158.54,158.5,7.89533623]
[1724501374214,0.8458091,158.54,158.49,20.0]
[1724501374417,0.8458091,158.54,158.5,45.0]
[1724501377107,0.8458091,158.54,158.51,0.25098]
[1724501377293,0.8458091,158.54,158.52,24.53754574]
[1724501377494,0.8458091,158.54,158.53,45.0]
[1724501377698,0.8458091,158.54,158.5,24.53754574]
[1724501378022,0.8458091,158.54,158.51,20.0]
[1724501378223,15.0307,158.53,158.49,20.0]
[1724501378726,15.0307,158.53,158.47,20.0]
[1724501378904,15.0307,158.53,158.48,7.8954344]
[1724501379111,15.0307,158.53,158.49,20.0]
[1724501379428,1.57721814,158.52,158.49,20.0]
[1724501379731,15.0307,158.53,158.47,20.0]
[1724501379898,15.0307,158.53,158.48,7.89539883]
[1724501380099,1.57721197,158.52,158.49,20.0]
[1724501380310,15.0307,158.53,158.49,20.0]
[1724501380715,15.0307,158.53,158.48,24.48749697]
[1724501381035,15.0307,158.53,158.49,74.40833504]
[1724501381209,15.0307,158.53,158.5,24.48749697]
[1724501381417,0.8458091,158.54,158.51,1.26156659]
[1724501381727,0.8458091,158.54,158.51,66.26156659]
[1724501381903,0.8458091,158.54,158.52,1.26151147]
[1724501383125,0.8458091,158.54,158.51,65.12549]
[1724501383324,0.8458091,158.54,158.52,0.25098]
[1724501386805,0.8458091,158.54,158.52,8.14478831]
[1724501387034,0.8458091,158.54,158.53,45.0]
[1724501390735,0.8458091,158.54,158.53,45.25098]
[1724501392009,0.8458091,158.54,158.53,45.0]
[1724501392210,6.092,158.52,158.4,386.9]
[1724501392427,6.092,158.52,158.38,36.2824]
[1724501392428,1.57740343,158.51,158.43,24.48749697]
[1724501392642,1.57740343,158.51,158.44,7.89628155]
[1724501392843,1.57740343,158.51,158.45,7.89628155]
[1724501393139,7.66940739,158.52,158.44,7.89628155]
[1724501393345,6.092,158.52,158.45,32.38377852]
[1724501393644,6.092,158.52,158.46,53.14726155]
[1724501393830,6.092,158.52,158.47,7.89628155]
[1724501394161,6.092,158.52,158.48,45.0]
[1724501395039,6.092,158.52,158.46,0.25098]
[1724501395443,6.092,158.52,158.45,53.14739458]
[1724501395745,6.092,158.52,158.45,45.25098]
[1724501399328,1.57742691,158.51,158.38,26.06091638]
[1724501399535,15.9367,158.5,158.38,31.08172681]
[1724501399733,1.5778059,158.49,158.39,20.0]
[1724501399929,1.57779501,158.48,158.39,20.0]
[1724501400127,1.577813,158.49,158.39,20.0]
[1724501400832,1.57775363,158.48,158.39,20.0]
[1724501401949,1.57781364,158.49,158.39,20.0]
[1724501402531,1.57781364,158.49,158.4,45.25098]
[1724501402731,1.57781364,158.49,158.41,20.0]
[1724501402935,1.57781364,158.49,158.42,45.0]
[1724501403931,1.57781364,158.49,158.41,20.0]
[1724501404146,1.57781364,158.49,158.4,0.25098]
[1724501404326,1.57781364,158.49,158.4,45.25098]
[1724501404530,15.9367,158.47,158.38,6.59422984]
[1724501404723,1.5781745,158.46,158.34,24.48749697]
[1724501404926,40.42419697,158.47,158.34,27.65984832]
[1724501404927,1.57816693,158.45,158.34,27.65984832]
[1724501405650,17.51483175,158.47,158.38,24.48749697]
[1724501406044,15.9367,158.47,158.39,45.25098]
[1724501406260,17.51463246,158.47,158.39,45.25098]
[1724501406632,15.9367,158.47,158.4,1.26234591]
[1724501406832,17.51463239,158.47,158.39,45.25098]
[1724501408430,17.51463239,158.47,158.39,45.0]
[1724501408631,17.51463239,158.47,158.36,24.48749697]
[1724501408942,17.51463239,158.47,158.37,65.25098]
[1724501409750,15.9367,158.47,158.37,65.25098]
[1724501409958,1.57813395,158.46,158.37,65.25098]
[1724501410132,1.57815836,158.45,158.37,65.25098]
[1724501411052,15.9367,158.47,158.37,65.25098]
[1724501411053,6.4431,158.44,158.37,20.0]
[1724501411276,23.66115706,158.44,158.33,6.59764927]
[1724501411439,23.66115706,158.44,158.32,24.48749697]
[1724501412559,23.66115706,158.44,158.33,20.0]
[1724501412761,23.66115706,158.44,158.34,45.0]
[1724501412971,23.66115706,158.44,158.35,20.25098]
[1724501413138,23.66115706,158.44,158.36,45.0]
[1724501414340,23.66115706,158.44,158.37,0.12549]
[1724501416462,33.47119225,158.44,158.37,0.12549]
[1724501416765,33.47119225,158.44,158.35,29.81003519]
[1724501417161,33.47119225,158.44,158.35,20.0]
[1724501417360,33.47119225,158.44,158.35,9.81003519]
[1724501417560,33.47119225,158.44,158.36,20.0]
[1724501417941,23.66115706,158.44,158.36,20.0]
[1724501418139,33.47119225,158.44,158.36,20.0]
[1724501419961,15.6399,158.43,158.36,20.0]
[1724501420258,1.57852501,158.42,158.34,20.0]
[1724501420468,11.3885602,158.42,158.34,20.0]
[1724501421050,11.3885602,158.42,158.33,9.93552519]
[1724501421366,11.3885602,158.42,158.34,20.0]
[1724501421577,22.083,158.41,158.34,20.0]
[1724501421750,1.57864478,158.4,158.32,9.81003519]
[1724501421950,1.57864478,158.4,158.33,20.12549]
[1724501422278,22.083,158.41,158.32,9.81003519]
[1724501422444,1.57885947,158.4,158.32,9.81003519]
[1724501422658,22.083,158.41,158.32,9.81003519]
[1724501423668,1.57880031,158.4,158.32,9.81003519]
[1724501424071,11.3888355,158.4,158.31,9.81003519]
[1724501424388,11.3888355,158.4,158.32,20.0]
[1724501424773,1.57880031,158.4,158.32,20.0]
[1724501427773,31.89303519,158.41,158.33,1.26295379]
[1724501429469,22.083,158.41,158.33,1.26295379]
[1724501429875,22.083,158.41,158.32,20.0]
[1724501430169,1.57872866,158.4,158.32,20.0]
[1724501430365,22.083,158.41,158.33,1.26298293]
[1724501431787,1.578728,158.4,158.32,20.0]
[1724501431963,1.578728,158.39,158.32,20.0]
[1724501434901,1.578728,158.39,158.3,0.12549]
[1724501435067,1.578728,158.39,158.32,9.81003519]
[1724501439013,1.578728,158.39,158.31,9.93552519]
[1724501439194,1.578728,158.39,158.32,20.0]
[1724501439903,15.9538,158.38,158.32,20.0]
[1724501440110,1.5789154,158.37,158.32,20.0]
[1724501441015,1.5789154,158.37,158.29,45.0]
[1724501441331,16.11983519,158.36,158.26,9.81003519]
[1724501441477,1.57918328,158.35,158.26,9.81003519]
[1724501442900,1.57918328,158.35,158.28,9.81003519]
[1724501443296,1.57918328,158.35,158.24,48.7441226]
[1724501443297,15.9538,158.34,158.24,9.50398184]
[1724501443610,1.57940453,158.33,158.25,9.81003519]
[1724501443797,1.57940453,158.33,158.27,9.81003519]
[1724501454411,15.9538,158.34,158.29,9.81003519]
[1724501454616,15.9538,158.34,158.31,9.81003519]
[1724501454923,15.9538,158.34,158.31,11.07320127]
[1724501455297,15.9538,158.34,158.32,1.26313757]
[1724501455503,15.9538,158.34,158.32,45.0]
[1724501457702,6.3098,158.36,158.32,45.0]
[1724501458430,6.3098,158.36,158.33,9.81003519]
[1724501458632,15.7804,158.38,158.33,9.93552519]
[1724501460223,15.7804,158.38,158.33,17.83898461]
[1724501461122,15.7804,158.38,158.33,9.93552519]
[1724501461334,15.7804,158.38,158.34,45.0]
[1724501461516,15.7804,158.38,158.35,9.81003519]
[1724501462947,15.7804,158.38,158.35,17.71307522]
[1724501465341,15.7804,158.38,158.36,7.90304003]
[1724501468740,1.57846534,158.43,158.37,53.02853003]
[1724501468741,16.0846,158.42,158.37,53.02853003]
[1724501468952,16.0846,158.42,158.38,7.90304003]
[1724501469748,16.0846,158.42,158.39,7.90304003]
[1724501470049,16.0846,158.42,158.38,7.90304003]
[1724501470248,16.0846,158.42,158.39,7.90304003]
[1724501470455,16.0846,158.42,158.39,9.81003519]
[1724501470620,16.0846,158.42,158.4,7.90304003]
[1724501471531,16.0846,158.42,158.38,0.12549]
[1724501471859,16.0846,158.42,158.34,9.81003519]
[1724501472159,1.57821787,158.41,158.34,9.81003519]
[1724501472446,1.57821787,158.41,158.35,20.0]
[1724501474345,17.66313697,158.42,158.35,20.0]
[1724501474545,16.0846,158.42,158.36,9.81003519]
[1724501474730,16.0846,158.42,158.37,45.0]
[1724501475141,16.0846,158.42,158.38,10.06101519]
[1724501475325,16.0846,158.42,158.39,45.0]
[1724501478561,16.0846,158.42,158.38,45.25098]
[1724501481048,16.0846,158.42,158.38,45.0]
[1724501481250,16.0846,158.42,158.35,29.81003519]
[1724501481433,1.57826368,158.41,158.36,8.02697069]
[1724501481954,17.66296178,158.42,158.36,8.02697069]
[1724501482740,16.0846,158.42,158.36,8.02697069]
[1724501482943,1.57836315,158.41,158.36,7.90148069]
[1724501484445,1.57836315,158.41,158.35,20.0]
[1724501484648,1.57836315,158.41,158.33,9.81003519]
[1724501484649,1.57836315,158.41,158.34,20.0]
[1724501484962,1.57836315,158.41,158.35,52.90219733]
[1724501485164,1.57836315,158.41,158.36,7.90219733]
[1724501485368,1.57836315,158.41,158.35,45.0]
[1724501487048,17.66312029,158.42,158.35,54.81003519]
[1724501487247,17.66312029,158.42,158.36,7.90202978]
[1724501487447,17.66312029,158.42,158.37,45.12549]
[1724501487663,17.66312029,158.42,158.35,9.81003519]
[1724501487861,17.66312029,158.42,158.36,45.0]
[1724501489875,16.0846,158.42,158.36,45.0]
[1724501490257,16.0846,158.42,158.34,20.0]
[1724501490458,1.57859127,158.43,158.35,7.90236036]
[1724501490658,21.8569,158.41,158.36,20.0]
[1724501490959,1.57846663,158.4,158.36,20.0]
[1724501491362,1.57846663,158.4,158.34,20.0]
[1724501491665,1.57846663,158.4,158.35,7.90172827]
[1724501493675,1.57865825,158.4,158.35,7.90172827]
[1724501493892,21.8569,158.41,158.35,7.90172827]
[1724501495578,1.57858158,158.4,158.35,7.90172827]
[1724501496181,1.57858158,158.4,158.36,7.90172827]
[1724501496481,1.57858158,158.4,158.35,7.90172827]
[1724501496679,1.57858158,158.4,158.36,7.90172827]
[1724501496851,1.57858158,158.4,158.35,7.90172827]
[1724501497045,1.57858158,158.4,158.34,20.0]
[1724501497266,1.57858158,158.4,158.35,7.90204734]
[1724501497468,1.57858158,158.4,158.36,7.90204734]
[1724501497654,1.57858158,158.4,158.35,7.90204734]
[1724501497957,1.57855832,158.39,158.36,7.90204734]
[1724501498166,1.57855832,158.39,158.35,7.90204734]
[1724501498372,1.57855832,158.39,158.36,7.90204734]
[1724501498555,1.57855832,158.39,158.35,7.90204734]
[1724501498762,1.57866298,158.4,158.36,7.90204734]
[1724501498952,1.57866298,158.4,158.35,7.90204734]
[1724501499153,1.57866298,158.4,158.36,7.90204734]
[1724501499357,1.57866298,158.4,158.31,9.81003519]
[1724501499557,1.57866298,158.4,158.32,7.9026255]
[1724501499756,1.57866298,158.4,158.33,7.9026255]
[1724501499977,1.57866298,158.4,158.34,7.9026255]
[1724501500275,1.57866298,158.4,158.35,7.9026255]
[1724501500462,11.38869817,158.4,158.36,7.9026255]
[1724501500665,16.4142,158.39,158.3,9.81003519]
[1724501500872,1.57902341,158.38,158.31,7.903747]
[1724501501067,1.57902341,158.38,158.32,7.903747]
[1724501501400,1.57902341,158.38,158.33,7.903747]
[1724501501562,1.57902341,158.38,158.34,7.903747]
[1724501501967,1.57902341,158.38,158.35,7.903747]
[1724501502271,1.57894928,158.37,158.3,9.81003519]
[1724501502479,16.4142,158.39,158.31,29.16687678]
[1724501502653,16.4142,158.39,158.32,7.90367345]
[1724501502854,16.4142,158.39,158.33,7.90367345]
[1724501503180,16.4142,158.39,158.34,7.90367345]
[1724501503352,16.4142,158.39,158.35,7.90367345]
[1724501503559,16.4142,158.39,158.32,7.90367345]
[1724501503885,16.4142,158.39,158.33,7.90367345]
[1724501504058,16.4142,158.39,158.34,7.90367345]
[1724501504255,16.4142,158.39,158.35,7.90367345]
[1724501504455,1.57895383,158.38,158.32,7.90367345]
[1724501504685,1.57895383,158.38,158.33,7.90367345]
[1724501504982,1.57895383,158.38,158.34,7.90367345]
[1724501505152,1.57895383,158.38,158.31,20.0]
[1724501505355,1.57895383,158.38,158.32,7.90408366]
[1724501505663,1.57895383,158.38,158.33,7.90408366]
[1724501505861,1.57895383,158.38,158.34,7.90408366]
[1724501506061,1.57895383,158.38,158.3,20.0]
[1724501506262,1.57895383,158.38,158.31,7.9039334]
[1724501506583,1.57895383,158.38,158.32,7.9039334]
[1724501506767,1.57895383,158.38,158.33,7.9039334]
[1724501506969,1.57895383,158.38,158.34,7.9039334]
[1724501507280,1.57895383,158.38,158.31,7.9039334]
[1724501507472,1.57895383,158.38,158.32,7.9039334]
[1724501507658,1.57895383,158.38,158.33,7.9039334]
[1724501508072,1.57895383,158.38,158.34,7.9039334]
[1724501508255,1.57895383,158.38,158.31,7.9039334]
[1724501508456,1.57895383,158.38,158.32,7.9039334]
[1724501508658,1.57895383,158.38,158.33,7.9039334]
[1724501508874,1.57895383,158.38,158.29,9.81003519]
[1724501509066,1.57895383,158.38,158.3,7.9039334]
[1724501509381,1.57895383,158.38,158.31,7.9039334]
[1724501509579,6.1411,158.37,158.32,7.9039334]
[1724501509781,1.57912604,158.36,158.33,7.9039334]
[1724501509966,1.57910029,158.35,158.3,7.9039334]
[1724501510166,1.57910029,158.35,158.31,7.9039334]
[1724501510366,15.8781,158.34,158.32,7.9039334]
[1724501510579,1.57924399,158.33,158.29,7.9039334]
[1724501510763,1.57924399,158.33,158.3,7.9039334]
[1724501510965,1.57924399,158.33,158.31,7.9039334]
[1724501511263,1.57924399,158.33,158.32,7.9039334]
[1724501511470,1.57924399,158.33,158.29,7.9039334]
[1724501511671,1.57924399,158.33,158.25,6.59977148]
[1724501511861,1.57924399,158.33,158.26,45.0]
[1724501512062,1.57924399,158.33,158.25,9.81003519]
[1724501515700,6.5817,158.32,158.24,9.81003519]
[1724501515895,1.57970134,158.31,158.24,9.81003519]
[1724501517592,1.5795679,158.31,158.24,9.81003519]
[1724501518303,25.33763519,158.3,158.17,282.7343]
[1724501518526,1.57993254,158.29,158.2,9.81003519]
[1724501518807,6.5817,158.27,158.16,10.44173793]
[1724501518979,1.58004336,158.26,158.19,9.81003519]
[1724501519180,15.5276,158.25,158.19,9.81003519]
[1724501519388,1.58010841,158.24,158.17,9.81003519]
[1724501520186,1.58010841,158.24,158.14,6.6010687]
[1724501520387,1.58010841,158.24,158.17,9.81003519]
[1724501520704,15.5276,158.25,158.14,13.78393943]
[1724501520705,15.5276,158.25,158.21,9.81003519]
[1724501522009,11.38991371,158.24,158.15,9.81003519]
[1724501522300,1.58039095,158.23,158.14,6.6010687]
[1724501522506,1.58039095,158.23,158.15,9.81003519]
[1724501523195,25.33763519,158.25,158.16,1.26432823]
[1724501523405,1.58040812,158.24,158.17,9.81003519]
[1724501523776,15.5276,158.25,158.19,9.81003519]
[1724501525490,15.5276,158.25,158.21,9.81003519]
[1724501533085,15.5276,158.25,158.23,9.81003519]
[1724501533286,6.5817,158.27,158.23,9.81003519]
[1724501534410,1.57977914,158.26,158.15,29.68821611]
[1724501534601,1.57977914,158.26,158.19,9.81003519]
[1724501536019,1.57977914,158.26,158.15,29.68821611]
[1724501536190,16.3828,158.25,158.16,65.25098]
[1724501536506,1.58023971,158.24,158.19,9.81003519]
[1724501540407,1.58023897,158.23,158.19,9.81003519]
[1724501541110,16.3828,158.25,158.19,9.81003519]
[1724501543947,1.58033462,158.24,158.19,9.81003519]
[1724501544117,1.58033462,158.24,158.16,59.24014076]
[1724501544325,17.96303421,158.25,158.2,9.81003519]
[1724501544633,16.3828,158.25,158.2,9.81003519]
[1724501545010,16.3828,158.25,158.22,9.81003519]
[1724501546931,16.3828,158.25,158.19,9.81003519]
[1724501546932,1.57994416,158.24,158.19,9.81003519]
[1724501547137,1.57994416,158.24,158.16,20.0]
[1724501547138,1.58028375,158.23,158.18,9.81003519]
[1724501547439,1.58028375,158.24,158.18,9.81003519]
[1724501547641,17.96308352,158.25,158.18,9.81003519]
[1724501547935,17.96308352,158.25,158.2,9.81003519]
[1724501548251,16.3828,158.25,158.2,9.81003519]
[1724501548533,16.3828,158.25,158.22,9.81003519]
[1724501549426,6.5817,158.27,158.22,9.81003519]
[1724501551639,6.5817,158.27,158.24,9.81003519]
[1724501553341,15.4955,158.29,158.24,9.81003519]
[1724501553851,15.4955,158.29,158.26,9.81003519]
[1724501555628,1.57954062,158.28,158.17,18.30999192]
[1724501555822,1.57954062,158.28,158.18,65.0]
[1724501556146,1.57954062,158.28,158.21,9.81003519]
[1724501556345,1.57954062,158.28,158.22,65.0]
[1724501556719,1.57954062,158.28,158.17,18.30999192]
[1724501556919,1.57954062,158.28,158.2,9.81003519]
[1724501557120,1.57954062,158.28,158.21,20.0]
[1724501557723,1.57954062,158.28,158.2,9.81003519]
[1724501557929,1.57954062,158.28,158.21,20.0]
[1724501559244,1.57954062,158.28,158.22,9.81003519]
[1724501559447,15.4955,158.29,158.22,9.81003519]
[1724501559739,15.4955,158.29,158.22,11.07395041]
[1724501559950,1.57986926,158.28,158.22,9.81003519]
[1724501564034,1.57986926,158.28,158.21,20.0]
[1724501566357,6.3522,158.27,158.19,9.81003519]
[1724501566539,1.5800832,158.26,158.19,9.81003519]
[1724501567051,16.1935,158.25,158.19,9.81003519]
[1724501567264,1.58015773,158.24,158.18,0.12549]
[1724501567434,1.58015773,158.24,158.18,45.12549]
[1724501567744,1.58015281,158.23,158.16,9.81003519]
[1724501568256,1.58015281,158.23,158.17,20.0]
[1724501568755,1.58032435,158.24,158.17,20.0]
[1724501568980,16.1935,158.25,158.18,11.07429467]
[1724501569160,16.1935,158.25,158.18,11.07427442]
[1724501569529,16.1935,158.25,158.18,9.81003519]
[1724501570153,1.58007091,158.24,158.19,45.0]
[1724501571670,1.58007091,158.24,158.2,7.91044418]
[1724501571841,1.58007091,158.24,158.21,7.91044418]
[1724501572043,1.58007091,158.24,158.19,45.0]
[1724501572361,1.58007091,158.24,158.2,7.91044221]
[1724501572661,1.58007091,158.24,158.21,7.91044221]
[1724501572867,1.58007091,158.24,158.22,7.91044221]
[1724501573067,1.58007091,158.24,158.2,7.91044221]
[1724501573279,1.58007091,158.24,158.21,7.91044221]
[1724501573458,1.58007091,158.24,158.22,7.91044221]
[1724501573771,1.58007091,158.24,158.2,7.91044221]
[1724501574070,1.58007091,158.24,158.21,7.91044221]
[1724501574270,1.58007091,158.24,158.22,7.91044221]
[1724501574441,1.58007091,158.24,158.2,7.91044221]
[1724501574641,1.58007091,158.24,158.21,7.91044221]
[1724501574841,1.58007091,158.24,158.22,7.91044221]
[1724501575070,1.58007091,158.24,158.2,7.91044221]
[1724501575260,1.58007091,158.24,158.21,7.91010193]
[1724501575573,1.58007091,158.24,158.22,7.91010193]
[1724501575862,1.58006749,158.24,158.2,7.91010193]
[1724501576065,1.58022704,158.23,158.21,7.91048761]
[1724501576242,1.58022704,158.23,158.18,9.81003519]
[1724501576243,1.58022704,158.23,158.19,7.91048761]
[1724501576573,1.58022704,158.23,158.2,7.91048761]
[1724501576870,1.58022704,158.23,158.21,7.91071572]
[1724501577050,1.58020804,158.24,158.21,7.91071572]
[1724501577370,1.58020804,158.24,158.18,9.81003519]
[1724501577371,1.58020804,158.24,158.19,7.91071572]
[1724501577550,1.58020804,158.24,158.2,7.91071572]
[1724501577764,1.58020804,158.24,158.21,7.91071572]
[1724501577955,1.58020804,158.24,158.19,7.91071572]
[1724501578267,1.58020804,158.24,158.2,7.91071572]
[1724501578474,1.58020804,158.24,158.21,7.91071572]
[1724501578676,1.58020804,158.24,158.19,7.91071572]
[1724501578845,1.58020804,158.24,158.2,7.91071572]
[1724501579045,1.58020804,158.24,158.21,7.91071572]
[1724501579354,1.58020804,158.24,158.19,7.91071572]
[1724501579557,1.58020804,158.24,158.2,7.91071572]
[1724501579742,1.58020804,158.24,158.21,7.91071572]
[1724501579945,1.58020804,158.24,158.19,7.91071572]
[1724501580164,1.58020804,158.24,158.2,7.91064208]
[1724501580540,1.58020804,158.24,158.18,9.81003519]
[1724501580541,1.58020804,158.24,158.21,15.82127286]
[1724501580874,1.58020804,158.24,158.18,9.81003519]
[1724501581581,1.58020804,158.24,158.19,7.9107167]
[1724501581874,1.58020804,158.24,158.2,7.9107167]
[1724501582067,16.1935,158.25,158.21,7.9107167]
[1724501582373,16.1935,158.25,158.22,7.9107167]
[1724501582582,16.1935,158.25,158.21,7.9107167]
[1724501582746,16.1935,158.25,158.2,9.81003519]
[1724501583072,16.1935,158.25,158.21,7.91035371]
[1724501583379,16.1935,158.25,158.2,9.81003519]
[1724501583553,16.1935,158.25,158.21,7.91033922]
[1724501583755,16.1935,158.25,158.22,7.91033922]
[1724501583950,16.1935,158.25,158.21,7.91033922]
[1724501584150,1.57997366,158.24,158.22,7.91033922]
[1724501584371,1.57997366,158.24,158.21,7.91033922]
[1724501584587,1.57997366,158.24,158.2,9.81003519]
[1724501584757,1.57997366,158.24,158.21,7.910383]
[1724501585078,1.57997366,158.24,158.2,9.81003519]
[1724501585386,1.57997366,158.24,158.21,7.910383]
[1724501585561,1.57997366,158.24,158.2,9.81003519]
[1724501585763,1.57997366,158.24,158.21,7.91032379]
[1724501585960,1.57997366,158.24,158.18,9.81003519]
[1724501586366,1.57997366,158.24,158.19,7.91040024]
[1724501586654,1.57997366,158.24,158.18,9.81003519]
[1724501587170,1.57997366,158.24,158.17,20.0]
[1724501587478,1.57997366,158.24,158.18,9.81003519]
[1724501588375,1.5802208,158.23,158.15,20.0]
[1724501588574,1.5802208,158.23,158.17,9.81003519]
[1724501591586,1.58043014,158.22,158.17,9.81003519]
[1724501591773,1.5804297,158.24,158.17,9.81003519]
[1724501592091,26.00353519,158.25,158.17,9.81003519]
[1724501593576,1.58042784,158.24,158.17,9.81003519]
[1724501594492,26.00353519,158.25,158.17,9.81003519]
[1724501595564,16.1935,158.25,158.19,9.81003519]
[1724501596683,16.1935,158.25,158.16,39.36563076]
[1724501596684,16.1935,158.25,158.21,9.81003519]
[1724501597070,15.4744,158.29,158.23,9.81003519]
[1724501597269,15.4744,158.29,158.22,46.51480371]
[1724501597270,15.4744,158.29,158.25,9.81003519]
[1724501597772,1.57960961,158.28,158.25,9.81003519]
[1724501598602,17.05401389,158.29,158.2,45.0]
[1724501598800,1.57961389,158.27,158.22,9.81003519]
[1724501599092,1.57994372,158.26,158.22,9.81003519]
[1724501599976,1.5799424,158.28,158.22,9.81003519]
[1724501608798,17.05426867,158.29,158.24,9.81003519]
[1724501609303,15.4744,158.29,158.24,9.81003519]
[1724501610403,1.57964886,158.28,158.24,9.81003519]
[1724501611604,15.4744,158.29,158.24,9.81003519]
[1724501612006,17.05405016,158.29,158.24,9.81003519]
[1724501612997,17.05405016,158.29,158.21,9.81003519]
[1724501613914,17.05405016,158.29,158.18,3.12227033]
[1724501614211,17.05405016,158.29,158.21,9.81003519]
[1724501615383,17.05405016,158.29,158.18,20.0]
[1724501615584,17.05405016,158.29,158.21,9.81003519]
[1724501621003,15.4744,158.29,158.23,9.81003519]
[1724501621184,1.5797147,158.28,158.23,9.81003519]
[1724501621917,15.4744,158.29,158.23,9.81003519]
[1724501622291,1.5797043,158.28,158.23,9.81003519]
[1724501625919,15.4744,158.29,158.23,9.81003519]
[1724501627717,15.4744,158.29,158.25,9.81003519]
[1724501629027,15.4744,158.29,158.27,9.81003519]
[1724501629811,6.2609,158.31,158.27,9.81003519]
[1724501630121,16.6586,158.33,158.27,9.81003519]
[1724501632820,16.6586,158.33,158.28,1.26340542]
[1724501633014,16.6586,158.33,158.29,9.81003519]
[1724501635021,16.6586,158.33,158.3,45.0]
[1724501635814,6.6541,158.36,158.3,45.0]
[1724501637519,16.6586,158.37,158.31,1.2631042]
[1724501638418,16.6586,158.37,158.31,11.07313939]
[1724501638942,16.6586,158.37,158.31,9.81003519]
[1724501639240,6.6541,158.4,158.35,9.81003519]
[1724501640735,8.23251057,158.4,158.32,65.25098]
[1724501640943,8.23251057,158.4,158.33,9.81003519]
[1724501641113,8.23251057,158.4,158.34,45.12549]
[1724501646923,6.6541,158.4,158.34,45.12549]
[1724501648535,8.23258856,158.4,158.34,45.12549]
[1724501648936,1.57848853,158.39,158.25,35.03775786]
[1724501649246,1.57848853,158.39,158.3,9.81003519]
[1724501649821,1.57848853,158.39,158.26,7.90373273]
[1724501650042,1.57848853,158.39,158.3,9.81003519]
[1724501650239,1.57848853,158.39,158.31,65.12549]
[1724501652335,1.57848853,158.39,158.31,65.0]
[1724501652535,1.57848853,158.39,158.31,20.0]
[1724501653037,26.14463519,158.38,158.31,20.0]
[1724501653246,1.57907083,158.37,158.27,29.81003519]
[1724501653544,6.4967,158.35,158.28,7.90433781]
[1724501653735,1.57928109,158.34,158.25,9.81003519]
[1724501653932,16.3346,158.33,158.25,9.81003519]
[1724501654240,1.57931694,158.32,158.25,9.81003519]
[1724501655220,1.57931694,158.32,158.26,20.0]
[1724501656829,1.57931694,158.32,158.27,45.0]
[1724501662659,16.3346,158.33,158.27,54.81003519]